{"text_format":"1","workbook":"xlsx","n_sheets":5,"sheets":["CLASSIFICAÇÃO GERAL 2022","jan23","fev23","mar23","abr23"],"not_rendered":{"charts":0,"images":2,"macros":1,"external_links":0,"defined_names":1,"comments":0,"pivot_tables":0},"unopened":[],"bounds":{"document_bytes":16777216,"sheet_cells":100000,"rows_first":2000,"rows_last":500,"rows_between":2000,"halvings":0,"cell_chars":16384,"cell_head_chars":4096},"cells_cut":0,"cells_raw":0,"read":"whole","date_system":"1900"}

{"sheet":"CLASSIFICAÇÃO GERAL 2022","index":0,"n_rows":103,"n_cols":5,"rows_kept":103,"cut":false,"hidden":false,"merged":[[0,0,0,4],[1,0,1,4]]}
["CLASSIFICAÇÃO GERAL ACPA – TEMPORADA VERÃO 2023 DOMINGO"]
["TRINCA-FERRO FIBRA","Pássaro","Proprietário","Origem","Pontos"]
["POSIÇÃO","NOME DO PÁSSARO","NOME DO PROPRIETÁRIO","ORIGEM (CIDADE)","PONTUAÇÃO"]
["1º","RADAR","CLODOALDO","TRÊS RIOS",{"$f":"24+18+14+25+28+27+30+26","v":192}]
["2º","CARIOCA","PAULINHO","TRÊS RIOS",{"$f":"24+28+24+27+25","v":128}]
["3º","TALENTO","PELANCA","TRÊS RIOS",{"$f":"22+16+26+30","v":94}]
["4º","CHICÃO","RONI","PIQUIRI",{"$f":"30+29+28","v":87}]
["5º","THOR","EDILSON PAVÃO","PETRÓPOLIS",{"$f":"29+29+29","v":87}]
["6º","DÚ OURO","EDUARDO CATER","TRÊS RIOS",{"$f":"22+27+29","v":78}]
["7º","GHENGIS KHAN","LUIZINHO","PETRÓPOLIS",{"$f":"17+23+15+23","v":78}]
["8º","TOKINHO","RODRIGO GONÇALVES","PETRÓPOLIS",{"$f":"21+28+29","v":78}]
["9º","TAURUS","KLEBER","AREAL",{"$f":"13+26+28","v":67}]
["10º","BOLT","JOSÉ MARCIO","PEQUERI",{"$f":"30+30","v":60}]
["11º","CRUEL","STÊNIO","MATIAS BARBOSA",{"$f":"29+30","v":59}]
["12º","SOLDADO","ARTHUR","SAPUCAIA",{"$f":"29+30","v":59}]
["13º","BLINDADO","PABLO","PETRÓPOLIS",{"$f":"11+24+22","v":57}]
["14º","IMPERADOR","LECO","PETRÓPOLIS",{"$f":"27+29","v":56}]
["15º","TARRAFA","EDIMAR LEITEIRO","PETRÓPOLIS",{"$f":"30+26","v":56}]
["16º","ROLEX","CAIO CÉSAR","PETRÓPOLIS",{"$f":"26+28","v":54}]
["17º","RD","ROBSON CAMPOS","PETRÓPOLIS",{"$f":"28+23","v":51}]
["18º","JATO","ANDRÉ VIEIRA","PETRÓPOLIS",{"$f":"40+8","v":48}]
["19º","ZÉ CALANGO","EDILSON PAVÃO","PETRÓPOLIS",{"$f":"30+18","v":48}]
["20º","CACHORRO LOUCO","HERALDO","PETRÓPOLIS",{"$f":"29+17","v":46}]
["21º","EXTINTOR","JOÃO MARCOS","AREAL",{"$f":"25+20","v":45}]
["22º","CAPITÃO","KLEBER","AREAL",{"$f":"18+24","v":42}]
["23º","5 E 60","TIAGO JAIR","?",30]
["24º","ANTA","CRIATORIO PICININI","MATIAS BARBOSA",30]
["25º","LOGUS","ORLANDO","NITERÓI",30]
["26º","MENDIGO","ROBSON AUAD","TRÊS RIOS",{"$f":"13+17","v":30}]
["27º","PRESIDENTE","CORREIA","CABO FRIO",30]
["28º","CORINGA","LÉO","PETRÓPOLIS",29]
["29º","PESADELO","THIAGO DOS REIS","PETRÓPOLIS",29]
["30º","ANTA","CRIATÓRIO PICININI","MATIAS BARBOSA",28]
["31º","JOÃOZINHO","GUGU","PETRÓPOLIS",28]
["32º","SÔ CHICO","ALISSON","TRÊS RIOS",28]
["33º","KALEB","CÁSSIO","TRÊS RIOS",27]
["34º","MISTÉRIO","EDSON","PETRÓPOLIS",27]
["35º","POZE","LUCAS MOACYR","MATIAS BARBOSA",27]
["36º","RED BULL","DILÉSIO","TRÊS RIOS",27]
["37º","SIDORFF","ISAIAS","TRÊS RIOS",27]
["38º","CABEÇA BRANCA","LEANDRO SHIRAI","PETRÓPOLIS",26]
["39º","CAVALÃO","FERNANDO","MATIAS BARBOSA",26]
["40º","PISTOLEIRO","BRUNO BRANCO","PETRÓPOLIS",26]
["41º","BOGAO","FÁBIO","TRÊS RIOS",25]
["42º","CHEGUEI","RUDINI","PETRÓPOLIS",25]
["43º","RAIO DE FOGO","RODRIGO","PETRÓPOLIS",25]
["44º","ROLEX","PAULO HENRIQUE","AREAL",25]
["45º","BUGÃO","ANDRÉ VIEIRA","PETRÓPOLIS",24]
["46º","CASCÃO","CLEBER","TRÊS RIOS",23]
["47º","FEDERAL","PABLO","PETRÓPOLIS",23]
["48º","COYOTE","LUIZINHO","PETRÓPOLIS",22]
["49º","ESPETÁCULO","RICARDO/GUSTAVINHO","ANTA",22]
["50º","OURO BRANCO","EDUARDO","TRÊS RIOS",21]
["51º","BEM-TE-VI","ROBIM","SÃO JOSÉ",20]
["52º","ZANGADO","SAMUEL RAMOS","PETRÓPOLIS",20]
["53º","CARNIFICINA","THIAGO","TRÊS RIOS",19]
["54º","DÉSPOTA","EDUARDO CATER","TRÊS RIOS",19]
["55º","DELEGADO","VALDECIR","PETRÓPOLIS",16]
["56º","DEMENTE","DOUGLAS SANTOS","TRÊS RIOS",16]
["57º","AZINHA","DEIVINHO","TRÊS RIOS",15]
["58º","PANTERA","ROBIM","SÃO JOSÉ",14]
["59º","JJ","BRUNO BRANCO","PETRÓPOLIS",12]
["60º","RED BULL","LECO","PETRÓPOLIS",12]
["61º","TROVÃO","DOUGLAS SANTOS","TRÊS RIOS",11]
["62º"]
["63º"]
["64º"]
["65º"]
["66º"]
["67º"]
["68º"]
["69º"]
["70º"]
["71º"]
["72º"]
["73º"]
["74º"]
["75º"]
["76º"]
["77º"]
["78º"]
["79º"]
["80º"]
["81º"]
["82º"]
["83º"]
["84º"]
["85º"]
["86º"]
["87º"]
["88º"]
["89º"]
["90º"]
["91º"]
["92º"]
["93º"]
["94º"]
["95º"]
["96º"]
["97º"]
["98º"]
["99º"]
["100º"]

{"sheet":"jan23","index":1,"n_rows":22,"n_cols":34,"rows_kept":22,"cut":false,"hidden":false,"merged":[[0,0,0,5],[0,7,0,12],[0,14,0,19],[0,21,0,26],[0,28,0,33]]}
["31/12/2022 (SÁBADO)",null,null,null,null,null,null,"2023-01-08",null,null,null,null,null,null,"2023-01-15",null,null,null,null,null,null,"2023-01-22",null,null,null,null,null,null,"2023-01-29"]
["POS.","PÁSSARO","PROPRIETÁRIO","ORIGEM","CANTOS","PONTOS",null,"POS.","PÁSSARO","PROPRIETÁRIO","ORIGEM","CANTOS","PONTOS",null,"POS.","PÁSSARO","PROPRIETÁRIO","ORIGEM","CANTOS","PONTOS",null,"POS.","PÁSSARO","PROPRIETÁRIO","ORIGEM","CANTOS","PONTOS",null,"POS.","PÁSSARO","PROPRIETÁRIO","ORIGEM","CANTOS","PONTOS"]
["1º","TARRAFA","EDIMAR LEITEIRO","PETRÓPOLIS",140,30,null,"1º","ZÉ CALANGO","JONAS","TRÊS RIOS",161,30,null,"1º","5 E 60","TIAGO JAIR","?",160,30,null,"1º","LOGUS","ORLANDO","NITERÓI",173,30,null,"1º","TALENTO","PELANCA","TRÊS RIOS",123,30]
["2º","CACHORRO LOUCO","HERALDO","PETRÓPOLIS",139,29,null,"2º","CORINGA","LÉO","PETRÓPOLIS",141,29,null,"2º","PESADELO","THIAGO DOS REIS","PETRÓPOLIS",158,29,null,"2º","CHICÃO","CLEBER","TRÊS RIOS",141,29,null,"2º","TOKINHO","RODRIGO GONÇALVES","PETRÓPOLIS",116,29]
["3º","RD","ROBSON","PETRÓPOLIS",120,28,null,"3º","SÔ CHICO","ALISSON","TRÊS RIOS",138,28,null,"3º","CARIOCA","PAULINHO","TRÊS RIOS",147,28,null,"3º","TOKINHO","RODRIGO","PETRÓPOLIS",136,28,null,"3º","RADAR","CLODOALDO","TRÊS RIOS",109,28]
["4º","RED BULL","DILÉSIO","TRÊS RIOS",119,27,null,"4º","POZE","LUCAS MOACYR","MATIAS BARBOSA",131,27,null,"4º","IMPERADOR","LECO","PETRÓPOLIS",139,27,null,"4º","DÚ OURO","EDUARDO CATER","TRÊS RIOS",134,27,null,"4º","CARIOCA","PAULINHO","TRÊS RIOS",109,27]
["5º","CABEÇA BRANCA","LEANDRO SHIRAI","PETRÓPOLIS",116,26,null,"5º","CAVALÃO","FERNANDO","MATIAS BARBOSA",122,26,null,"5º","TARRAFA","EDIMAR LEITEIRO","PETRÓPOLIS",137,26,null,"5º","TALENTO","PELANCA","TRÊS RIOS",132,26,null,"5º","TAURUS","KLEBER","AREAL",109,26]
["6º","EXTINTOR","JOÃO MARCOS","AREAL",112,25,null,"6º","BOGAO","FÁBIO","TRÊS RIOS",122,25,null,"6º","ROLEX","PAULO HENRIQUE","AREAL",130,25,null,"6º","RADAR","CLODOALDO","TRÊS RIOS",113,25,null,"6º","CHEGUEI","RUDINI","PETRÓPOLIS",105,25]
["7º","RADAR","CLODOALDO","TRÊS RIOS",112,24,null,"7º","CARIOCA","PAULINHO","TRÊS RIOS",121,24,null,"7º","BUGÃO","ANDRÉ VIEIRA","PETRÓPOLIS",130,24,null,"7º","CARIOCA","PAULINHO","TRÊS RIOS",93,24,null,"7º","BLINDADO","PABLO","PETRÓPOLIS",91,24]
["8º","ABUSADO","MÁRCIO","PETRÓPOLIS",107,23,null,"8º","GHENGIS KHAN","LUIZINHO","PETRÓPOLIS",112,23,null,"8º","RD","ROBSON CAMPOS","PETRÓPOLIS",130,23,null,"8º","GHENGIS KHAN","LUIZINHO","PETRÓPOLIS",90,23,null,"8º","CASCÃO","CLEBER","TRÊS RIOS",87,23]
["9º","DÚ OURO","EDUARDO CATER","TRÊS RIOS",104,22,null,"9º","TALENTO","PELANCA","TRÊS RIOS",112,22,null,"9º","ESPETÁCULO","RICARDO/GUSTAVINHO","ANTA",130,22,null,"9º",null,null,null,null,null,null,"9º","COYOTE","LUIZINHO","PETRÓPOLIS",87,22]
["10º","JATO","ANDRÉ VIEIRA","PETRÓPOLIS",102,21,null,"10º","OURO BRANCO","EDUARDO","TRÊS RIOS",112,21,null,"10º","TOKINHO","RODRIGO","PETRÓPOLIS",127,21,null,"10º",null,null,null,null,null,null,"10º"]
["11º","BEM-TE-VI","ROBIM","SÃO JOSÉ",98,20,null,"11º","EXTINTOR","JOÃO MARCOS","AREAL",105,20,null,"11º","ZANGADO","SAMUEL RAMOS","PETRÓPOLIS",121,20,null,"11º",null,null,null,null,null,null,"11º"]
["12º","DESPOTA","EDUARDO CATER","TRÊS RIOS",96,19,null,"12º","CARNIFICINA","THIAGO","TRÊS RIOS",102,19,null,"12º","JATO","ANDRÉ VIEIRA","PETRÓPOLIS",120,19,null,"12º",null,null,null,null,null,null,"12º"]
["13º","CAPITÃO","KLEBER","AREAL",95,18,null,"13º","RADAR","CLODOALDO","TRÊS RIOS",96,18,null,"13º","ZÉ CALANGO","EDILSON PAVÃO","PETRÓPOLIS",117,18,null,"13º",null,null,null,null,null,null,"13º"]
["14º","GHENGIS KHAN","LUIZINHO","PETRÓPOLIS",93,17,null,"14º","MENDIGO","ROBSON AUAD","TRÊS RIOS",83,17,null,"14º","CACHORRO LOUCO","HERALDO","PETRÓPOLIS",116,17,null,"14º",null,null,null,null,null,null,"14º"]
["15º","DEMENTE","DOUGLAS SANTOS","TRÊS RIOS",88,16,null,"15º","DELEGADO","VALDECIR","PETRÓPOLIS",75,16,null,"15º","TALENTO","PELANCA","TRÊS RIOS",115,16,null,"15º",null,null,null,null,null,null,"15º"]
["16º","AZINHA","DEIVINHO","TRÊS RIOS",83,15,null,"16º",null,null,null,null,null,null,"16º","GHENGIS KHAN","LUIZINHO","PETRÓPOLIS",114,15,null,"16º",null,null,null,null,null,null,"16º"]
["17º","PANTERA","ROBIM","SÃO JOSÉ",71,14,null,"17º",null,null,null,null,null,null,"17º","RADAR","CLODOALDO","TRÊS RIOS",108,14,null,"17º",null,null,null,null,null,null,"17º"]
["18º","MENDIGO","ROBSON AUAD","TRÊS RIOS",67,13,null,"18º",null,null,null,null,null,null,"18º","TAURUS","KLEBER","AREAL",104,13,null,"18º",null,null,null,null,null,null,"18º"]
["19º","JJ","BRUNO BRANCO","PETRÓPOLIS",66,12,null,"19º",null,null,null,null,null,null,"19º","RED BULL","LECO","PETRÓPOLIS",89,12,null,"19º",null,null,null,null,null,null,"19º"]
["20º","TROVÃO","DOUGLAS SANTOS","TRÊS RIOS",62,11,null,"20º",null,null,null,null,null,null,"20º","BLINDADO","PABLO","PETRÓPOLIS",84,11,null,"20º",null,null,null,null,null,null,"20º"]

{"sheet":"fev23","index":2,"n_rows":22,"n_cols":27,"rows_kept":22,"cut":false,"hidden":false,"merged":[[0,0,0,5],[0,7,0,12],[0,14,0,19],[0,21,0,26]]}
["2023-02-05",null,null,null,null,null,null,"2023-02-12",null,null,null,null,null,null,"2023-02-19",null,null,null,null,null,null,"2023-02-26"]
["POS.","PÁSSARO","PROPRIETÁRIO","ORIGEM","CANTOS","PONTOS",null,"POS.","PÁSSARO","PROPRIETÁRIO","ORIGEM","CANTOS","PONTOS",null,"POS.","PÁSSARO","PROPRIETÁRIO","ORIGEM","CANTOS","PONTOS",null,"POS.","PÁSSARO","PROPRIETÁRIO","ORIGEM","CANTOS","PONTOS"]
["1º","CHICAO","RONI","PIQUIRI",141,30,null,"1º","RADAR","CLODOALDO","TRÊS RIOS",102,30,null,"1º","PRESIDENTE","CORREIA","CABO FRIO",161,30,null,"1º","BOLT","JOSÉ MARCIO","PEQUERI",88,30]
["2º","DU OURO","EDUARDO CATER","TRÊS RIOS",136,29,null,"2º","SOLDADO","ARTHUR","SAPUCAIA",100,29,null,"2º","IMPERADOR","LECO","PETRÓPOLIS",125,29,null,"2º","CHEGUEI","RUDINI","PETRÓPOLIS",56,"N/A"]
["3º","TAURUS","KLEBER","AREAL",123,28,null,"3º","ROLEX","CAIO CÉSAR","PETRÓPOLIS",100,28,null,"3º","CHICÃO","RONI","PIQUIRI",117,28,null,"3º","CABULOSO","RUDINI","PETRÓPOLIS",41,"N/A"]
["4º","RADAR","CLODOALDO","TRÊS RIOS",104,27,null,"4º","KALEB","CÁSSIO","TRÊS RIOS",89,27,null,"4º","MISTÉRIO","EDSON","PETRÓPOLIS",104,27,null,"4º"]
["5º","ROLEX","CAIO CÉSAR","PETRÓPOLIS",97,26,null,"5º","PISTOLEIRO","BRUNO BRANCO","PETRÓPOLIS",84,26,null,"5º","RADAR","CLODOALDO","TRÊS RIOS",101,26,null,"5º"]
["6º","CARIOCA","PAULINHO","TRÊS RIOS",94,25,null,"6º","RAIO DE FOGO","RODRIGO","PETRÓPOLIS",72,25,null,"6º",null,null,null,null,null,null,"6º"]
["7º","CAPITÃO","KLEBER","AREAL",93,24,null,"7º","CARIOCA","PAULINHO","TRÊS RIOS",56,"N/A",null,"7º",null,null,null,null,null,null,"7º"]
["8º","FEDERAL","PABLO","PETRÓPOLIS",82,23,null,"8º",null,null,null,null,null,null,"8º",null,null,null,null,null,null,"8º"]
["9º","BLINDADO","PABLO","PETRÓPOLIS",62,22,null,"9º",null,null,null,null,null,null,"9º",null,null,null,null,null,null,"9º"]
["10º",175,"LEVI","TRÊS RIOS",58,"N/A",null,"10º",null,null,null,null,null,null,"10º",null,null,null,null,null,null,"10º"]
["11º",null,null,null,null,null,null,"11º",null,null,null,null,null,null,"11º",null,null,null,null,null,null,"11º"]
["12º",null,null,null,null,null,null,"12º",null,null,null,null,null,null,"12º",null,null,null,null,null,null,"12º"]
["13º",null,null,null,null,null,null,"13º",null,null,null,null,null,null,"13º",null,null,null,null,null,null,"13º"]
["14º",null,null,null,null,null,null,"14º",null,null,null,null,null,null,"14º",null,null,null,null,null,null,"14º"]
["15º",null,null,null,null,null,null,"15º",null,null,null,null,null,null,"15º",null,null,null,null,null,null,"15º"]
["16º",null,null,null,null,null,null,"16º",null,null,null,null,null,null,"16º",null,null,null,null,null,null,"16º"]
["17º",null,null,null,null,null,null,"17º",null,null,null,null,null,null,"17º",null,null,null,null,null,null,"17º"]
["18º",null,null,null,null,null,null,"18º",null,null,null,null,null,null,"18º",null,null,null,null,null,null,"18º"]
["19º",null,null,null,null,null,null,"19º",null,null,null,null,null,null,"19º",null,null,null,null,null,null,"19º"]
["20º",null,null,null,null,null,null,"20º",null,null,null,null,null,null,"20º",null,null,null,null,null,null,"20º"]

{"sheet":"mar23","index":3,"n_rows":22,"n_cols":27,"rows_kept":22,"cut":false,"hidden":false,"merged":[[0,0,0,5],[0,7,0,12],[0,14,0,19],[0,21,0,26]]}
["2023-03-05",null,null,null,null,null,null,"2023-03-12",null,null,null,null,null,null,"2023-03-19",null,null,null,null,null,null,"2023-03-26"]
["POS.","PÁSSARO","PROPRIETÁRIO","ORIGEM","CANTOS","PONTOS",null,"POS.","PÁSSARO","PROPRIETÁRIO","ORIGEM","CANTOS","PONTOS",null,"POS.","PÁSSARO","PROPRIETÁRIO","ORIGEM","CANTOS","PONTOS",null,"POS.","PÁSSARO","PROPRIETÁRIO","ORIGEM","CANTOS","PONTOS"]
["1º","SOLDADO","ARTHUR","SAPUCAIA",124,30,null,"1º","BOLT","JOSÉ MARCIO","PEQUERI/MG",127,30,null,"1º","ANTA","CRIATORIO PICININI","MATIAS BARBOSA",144,30,null,"1º","CRUEL","STÊNIO","MATIAS BARBOSA",103,30]
["2º","THOR","EDILSON PAVÃO","PETRÓPOLIS",114,29,null,"2º","THOR","EDILSON PAVÃO","PETRÓPOLIS",118,29,null,"2º","CRUEL","STENIO","MATIAS BARBOSA",136,29,null,"2º","THOR","EDILSON PAVÃO","PETRÓPOLIS",101,29]
["3º",null,null,null,null,null,null,"3º","CICATRIZ","NALDO","PETRÓPOLIS",54,"N/A",null,"3º","JOÃOZINHO","GUGU","PETRÓPOLIS",70,28,null,"3º","ANTA","CRIATÓRIO PICININI","MATIAS BARBOSA",94,28]
["4º",null,null,null,null,null,null,"4º",null,null,null,null,null,null,"4º",null,null,null,null,null,null,"4º","SIDORFF","ISAIAS","TRÊS RIOS",74,27]
["5º",null,null,null,null,null,null,"5º",null,null,null,null,null,null,"5º",null,null,null,null,null,null,"5º"]
["6º",null,null,null,null,null,null,"6º",null,null,null,null,null,null,"6º",null,null,null,null,null,null,"6º"]
["7º",null,null,null,null,null,null,"7º",null,null,null,null,null,null,"7º",null,null,null,null,null,null,"7º"]
["8º",null,null,null,null,null,null,"8º",null,null,null,null,null,null,"8º",null,null,null,null,null,null,"8º"]
["9º",null,null,null,null,null,null,"9º",null,null,null,null,null,null,"9º",null,null,null,null,null,null,"9º"]
["10º",null,null,null,null,null,null,"10º",null,null,null,null,null,null,"10º",null,null,null,null,null,null,"10º"]
["11º",null,null,null,null,null,null,"11º",null,null,null,null,null,null,"11º",null,null,null,null,null,null,"11º"]
["12º",null,null,null,null,null,null,"12º",null,null,null,null,null,null,"12º",null,null,null,null,null,null,"12º"]
["13º",null,null,null,null,null,null,"13º",null,null,null,null,null,null,"13º",null,null,null,null,null,null,"13º"]
["14º",null,null,null,null,null,null,"14º",null,null,null,null,null,null,"14º",null,null,null,null,null,null,"14º"]
["15º",null,null,null,null,null,null,"15º",null,null,null,null,null,null,"15º",null,null,null,null,null,null,"15º"]
["16º",null,null,null,null,null,null,"16º",null,null,null,null,null,null,"16º",null,null,null,null,null,null,"16º"]
["17º",null,null,null,null,null,null,"17º",null,null,null,null,null,null,"17º",null,null,null,null,null,null,"17º"]
["18º",null,null,null,null,null,null,"18º",null,null,null,null,null,null,"18º",null,null,null,null,null,null,"18º"]
["19º",null,null,null,null,null,null,"19º",null,null,null,null,null,null,"19º",null,null,null,null,null,null,"19º"]
["20º",null,null,null,null,null,null,"20º",null,null,null,null,null,null,"20º",null,null,null,null,null,null,"20º"]

{"sheet":"abr23","index":4,"n_rows":22,"n_cols":34,"rows_kept":22,"cut":false,"hidden":false,"merged":[[0,0,0,5],[0,7,0,12],[0,14,0,19],[0,21,0,26],[0,28,0,33]]}
["2023-04-02",null,null,null,null,null,null,"2023-04-09",null,null,null,null,null,null,"2023-04-16",null,null,null,null,null,null,"2023-04-23",null,null,null,null,null,null,"3023-04-30"]
["POS.","PÁSSARO","PROPRIETÁRIO","ORIGEM","CANTOS","PONTOS",null,"POS.","PÁSSARO","PROPRIETÁRIO","ORIGEM","CANTOS","PONTOS",null,"POS.","PÁSSARO","PROPRIETÁRIO","ORIGEM","CANTOS","PONTOS",null,"POS.","PÁSSARO","PROPRIETÁRIO","ORIGEM","CANTOS","PONTOS",null,"POS.","PÁSSARO","PROPRIETÁRIO","ORIGEM","CANTOS","PONTOS"]
["1º",null,null,null,null,30,null,"1º",null,null,null,null,30,null,"1º",null,null,null,null,30,null,"1º",null,null,null,null,30,null,"1º",null,null,null,null,30]
["2º",null,null,null,null,29,null,"2º",null,null,null,null,29,null,"2º",null,null,null,null,29,null,"2º",null,null,null,null,29,null,"2º",null,null,null,null,29]
["3º",null,null,null,null,28,null,"3º",null,null,null,null,28,null,"3º",null,null,null,null,28,null,"3º",null,null,null,null,28,null,"3º",null,null,null,null,28]
["4º",null,null,null,null,27,null,"4º",null,null,null,null,27,null,"4º",null,null,null,null,27,null,"4º",null,null,null,null,27,null,"4º",null,null,null,null,27]
["5º",null,null,null,null,26,null,"5º",null,null,null,null,26,null,"5º",null,null,null,null,26,null,"5º",null,null,null,null,26,null,"5º",null,null,null,null,26]
["6º",null,null,null,null,25,null,"6º",null,null,null,null,25,null,"6º",null,null,null,null,25,null,"6º",null,null,null,null,25,null,"6º",null,null,null,null,25]
["7º",null,null,null,null,24,null,"7º",null,null,null,null,24,null,"7º",null,null,null,null,24,null,"7º",null,null,null,null,24,null,"7º",null,null,null,null,24]
["8º",null,null,null,null,23,null,"8º",null,null,null,null,23,null,"8º",null,null,null,null,23,null,"8º",null,null,null,null,23,null,"8º",null,null,null,null,23]
["9º",null,null,null,null,22,null,"9º",null,null,null,null,22,null,"9º",null,null,null,null,22,null,"9º",null,null,null,null,22,null,"9º",null,null,null,null,22]
["10º",null,null,null,null,21,null,"10º",null,null,null,null,21,null,"10º",null,null,null,null,21,null,"10º",null,null,null,null,21,null,"10º",null,null,null,null,21]
["11º",null,null,null,null,20,null,"11º",null,null,null,null,20,null,"11º",null,null,null,null,20,null,"11º",null,null,null,null,20,null,"11º",null,null,null,null,20]
["12º",null,null,null,null,19,null,"12º",null,null,null,null,19,null,"12º",null,null,null,null,19,null,"12º",null,null,null,null,19,null,"12º",null,null,null,null,19]
["13º",null,null,null,null,18,null,"13º",null,null,null,null,18,null,"13º",null,null,null,null,18,null,"13º",null,null,null,null,18,null,"13º",null,null,null,null,18]
["14º",null,null,null,null,17,null,"14º",null,null,null,null,17,null,"14º",null,null,null,null,17,null,"14º",null,null,null,null,17,null,"14º",null,null,null,null,17]
["15º",null,null,null,null,16,null,"15º",null,null,null,null,16,null,"15º",null,null,null,null,16,null,"15º",null,null,null,null,16,null,"15º",null,null,null,null,16]
["16º",null,null,null,null,15,null,"16º",null,null,null,null,15,null,"16º",null,null,null,null,15,null,"16º",null,null,null,null,15,null,"16º",null,null,null,null,15]
["17º",null,null,null,null,14,null,"17º",null,null,null,null,14,null,"17º",null,null,null,null,14,null,"17º",null,null,null,null,14,null,"17º",null,null,null,null,14]
["18º",null,null,null,null,13,null,"18º",null,null,null,null,13,null,"18º",null,null,null,null,13,null,"18º",null,null,null,null,13,null,"18º",null,null,null,null,13]
["19º",null,null,null,null,12,null,"19º",null,null,null,null,12,null,"19º",null,null,null,null,12,null,"19º",null,null,null,null,12,null,"19º",null,null,null,null,12]
["20º",null,null,null,null,11,null,"20º",null,null,null,null,11,null,"20º",null,null,null,null,11,null,"20º",null,null,null,null,11,null,"20º",null,null,null,null,11]